[Event "35th European Club Cup 2019"]
[Site "Ulcinj"]
[Date "2019.11.16"]
[Round "7.10"]
[White "Csonka, Attila Istvan"]
[Black "Papadiamandis, Elliot"]
[Result "1-0"]
[ECO "B95"]
[WhiteElo "2348"]
[BlackElo "2220"]
[Annotator "NA"]
[PlyCount "99"]
[EventDate "2019.11.10"]
[EventType "team-tourn"]
[EventCountry "MNE"]
[SourceTitle "playchess.com"]
[Source "ChessBase"]
[SourceQuality "1"]
[WhiteTeam "Dunajska Streda"]
[BlackTeam "Mulhouse"]
[TimeControl "40/5400+30:1800+30"]

1. e4 {[%emt 0:00:00]} c5 {[%emt 0:00:00]} 2. Nf3 {[%emt 0:00:00]} d6 {[%emt 0:00:30]} 3. d4 {[%emt 0:00:00]} Nf6 {[%emt 0:00:28]} 4. Nc3 {[%emt 0:00:00]} cxd4 {[%emt 0:00:25]} 5. Nxd4 {[%emt 0:01:16]} a6 {[%emt 0:00:31]} 6. Bg5 {[%emt 0:00:44]} e6 {[%emt 0:00:40]} 7. Qf3 {[%emt 0:00:47]} h6 {[%emt 0:00:57]} 8. Bd2 {[%emt 0:02:09]} Qb6 {[%emt 0:00:25]} 9. Nb3 {[%emt 0:00:10]} Nbd7 {[%emt 0:00:49]} 10. Bd3 {[%emt 0:00:23]} Qc7 {[%emt 0:01:36]} 11. O-O {[%emt 0:01:10]} Be7 {[%emt 0:02:04]} 12. Qg3 {[%emt 0:06:38]} Nh5 {[%emt 0:03:07]} 13. Qg4 {[%emt 0:06:45]} g6 {[%emt 0:01:37]} 14. f4 {[%emt 0:01:00]} Nhf6 {[%emt 0:00:28]} 15. Qe2 {[%emt 0:05:25]} O-O {[%emt 0:06:22]} 16. Rae1 {[%emt 0:02:43]} Kg7 {[%emt 0:03:04]} 17. e5 {[%emt 0:01:27]} Nh7 {[%emt 0:04:35]} 18. Ne4 {[%emt 0:06:28]} dxe5 {[%emt 0:13:58]} 19. fxe5 {[%emt 0:00:38]} Nxe5 {[%emt 0:00:21]} 20. Bf4 {[%emt 0:10:41]} Qb6+ {[%emt 0:07:51]} 21. Be3 {[%emt 0:03:08]} Qc7 {[%emt 0:00:39]} 22. Bd4 {[%emt 0:00:27]} f6 23. Nxf6 {[%emt 0:01:39]} Bxf6 {[%emt 0:01:28]} 24. Rxf6 {[%emt 0:03:30]} Nxf6 {[%emt 0:03:45]} 25. Bxe5 {[%emt 0:00:37]} Qe7 {[%emt 0:09:04]} 26. Qe4 {[%emt 0:02:34]} Kg8 {[%emt 0:04:27]} 27. Qxg6+ {[%emt 0:00:50]} Qg7 {[%emt 0:00:18]} 28. Qxg7+ {[%emt 0:00:08]} Kxg7 {[%emt 0:00:13]} 29. Rf1 {[%emt 0:00:05]} b6 {[%emt 0:07:11]} 30. g4 {[%emt 0:00:29]} a5 {[%emt 0:04:37]} 31. Nd4 {[%emt 0:00:39]} a4 {[%emt 0:02:46]} 32. h4 {[%emt 0:02:13]} Ra5 {[%emt 0:00:47]} 33. Nb5 {[%emt 0:00:15]} Bd7 {[%emt 0:05:35]} 34. c4 {[%emt 0:00:13]} a3 {[%emt 0:00:15]} 35. b4 {[%emt 0:01:43]} Ra4 {[%emt 0:00:01]} 36. Nd6 {[%emt 0:00:11]} Kg8 {[%emt 0:01:38]} 37. Rxf6 {[%emt 0:00:38]} Rxf6 {[%emt 0:00:21]} 38. Bxf6 {[%emt 0:00:05]} Rxb4 {[%emt 0:10:20]} 39. g5 {[%emt 0:01:17]} h5 {[%emt 0:01:18]} 40. Bc3 {[%emt 0:00:00]} Ra4 {[%emt 0:00:00]} 41. Ne4 {[%emt 0:01:20]} Be8 {[%emt 0:03:04]} 42. Nf6+ {[%emt 0:04:52]} Kf8 {[%emt 0:00:27]} 43. Kf2 {[%emt 0:01:55]} Ke7 {[%emt 0:05:53]} 44. Ke3 {[%emt 0:01:53]} Bf7 {[%emt 0:00:04]} 45. g6 {[%emt 0:00:48]} Bxg6 {[%emt 0:00:27]} 46. Bxg6 {[%emt 0:00:06]} Rxc4 {[%emt 0:00:24]} 47. Ne4 {[%emt 0:00:05]} b5 {[%emt 0:00:53]} 48. Kd3 {[%emt 0:00:06]} Ra4 {[%emt 0:00:23]} 49. Bxh5 {[%emt 0:00:37]} b4 {[%emt 0:01:27]} 50. Bd1 {[%emt 0:00:07]} 1-0

[Event "35th European Club Cup 2019"]
[Site "Ulcinj"]
[Date "2019.11.16"]
[Round "7.10"]
[White "Lemmers, Oscar"]
[Black "Mohr, Georg"]
[Result "1/2-1/2"]
[ECO "C07"]
[WhiteElo "2346"]
[BlackElo "2437"]
[Annotator "NA"]
[PlyCount "53"]
[EventDate "2019.11.10"]
[EventType "team-tourn"]
[EventCountry "MNE"]
[SourceTitle "playchess.com"]
[Source "ChessBase"]
[SourceQuality "1"]
[WhiteTeam "KGSRL Gent"]
[BlackTeam "Maribor"]
[TimeControl "40/5400+30:1800+30"]

1. e4 {[%emt 0:00:00]} e6 {[%emt 0:06:56]} 2. d4 {[%emt 0:00:00]} d5 {[%emt 0:00:06]} 3. Nd2 {[%emt 0:00:00]} c5 {[%emt 0:00:10]} 4. exd5 {[%emt 0:00:19]} Qxd5 {[%emt 0:00:04]} 5. Ngf3 {[%emt 0:00:23]} cxd4 {[%emt 0:00:06]} 6. Bc4 {[%emt 0:00:09]} Qd7 {[%emt 0:00:04]} 7. O-O {[%emt 0:00:43]} Nc6 {[%emt 0:00:11]} 8. Nb3 {[%emt 0:02:30]} a6 {[%emt 0:00:54]} 9. a4 {[%emt 0:00:21]} Nf6 {[%emt 0:06:12]} 10. Bf4 {[%emt 0:09:43]} Bd6 {[%emt 0:06:17]} 11. Bxd6 {[%emt 0:00:17]} Qxd6 {[%emt 0:00:01]} 12. Nbxd4 {[%emt 0:02:15]} Nxd4 {[%emt 0:00:44]} 13. Qxd4 {[%emt 0:01:27]} Qxd4 {[%emt 0:03:20]} 14. Nxd4 {[%emt 0:00:02]} Bd7 {[%emt 0:00:10]} 15. Rfe1 {[%emt 0:07:48]} Rc8 {[%emt 0:09:17]} 16. Be2 {[%emt 0:11:46]} g6 {[%emt 0:07:09]} 17. c4 {[%emt 0:06:40]} a5 {[%emt 0:03:43]} 18. Nb3 {[%emt 0:15:52]} b6 {[%emt 0:12:14]} 19. c5 bxc5 {[%emt 0:01:04]} 20. Nxa5 {[%emt 0:08:22]} Ke7 {[%emt 0:02:21]} 21. Rec1 {[%emt 0:01:26]} Rb8 {[%emt 0:04:42]} 22. b3 {[%emt 0:08:14]} Rhc8 {[%emt 0:01:35]} 23. Rc2 {[%emt 0:01:34]} Nd5 {[%emt 0:19:42]} 24. Rac1 {[%emt 0:00:52]} Kd6 {[%emt 0:00:30]} 25. Nc4+ {[%emt 0:00:22]} Ke7 {[%emt 0:00:08]} 26. Nd2 {[%emt 0:03:31]} Rb4 {[%emt 0:02:16]} 27. g3 {[%emt 0:02:29]} 1/2-1/2

[Event "35th European Club Cup 2019"]
[Site "Ulcinj"]
[Date "2019.11.16"]
[Round "7.11"]
[White "Van Wissen, Michiel"]
[Black "Antipov, Mikhail Al."]
[Result "1-0"]
[ECO "B54"]
[WhiteElo "2289"]
[BlackElo "2558"]
[Annotator "ChessBase"]
[PlyCount "63"]
[EventDate "2019.11.10"]
[EventType "team-tourn"]
[EventCountry "MNE"]
[SourceTitle "playchess.com"]
[Source "ChessBase"]
[SourceQuality "1"]
[WhiteTeam "LSG IntelliMagic"]
[BlackTeam "Molodezka"]
[TimeControl "40/5400+30:1800+30"]

1. e4 {[%emt 0:00:00]} c5 {[%emt 0:00:00]} 2. Nf3 {[%emt 0:00:00]} d6 {[%emt 0:00:00]} 3. d4 {[%emt 0:00:00]} cxd4 {[%emt 0:00:00]} 4. Nxd4 {[%emt 0:00:00]} Nf6 {[%emt 0:00:00]} 5. f3 {[%emt 0:00:03]} e5 {[%emt 0:01:07]} 6. Nb3 {[%emt 0:00:06]} Be6 {[%emt 0:00:05]} 7. c4 {[%emt 0:00:13]} a5 {[%emt 0:00:06]} 8. Be3 {[%emt 0:00:24]} Be7 {[%emt 0:00:20]} 9. Nc3 {[%emt 0:01:16]} a4 {[%emt 0:02:00]} 10. Nd2 {[%emt 0:02:42]} Qa5 {[%emt 0:00:09]} 11. Be2 {[%emt 0:02:45]} O-O {[%emt 0:01:54]} 12. O-O {[%emt 0:03:29]} Bd8 {[%emt 0:00:15]} 13. Kh1 {[%emt 0:15:53]} Nfd7 {[%emt 0:00:19]} 14. Nd5 {[%emt 0:04:33]} Bxd5 {[%emt 0:07:10]} 15. cxd5 {[%emt 0:00:44]} b5 {[%emt 0:00:05]} 16. b4 {[%emt 0:13:50]} Qxb4 {[%emt 0:01:25]} 17. Qc1 {[%emt 0:03:41]} Qa5 {[%emt 0:07:56]} 18. Rb1 {[%emt 0:01:20]} Be7 {[%emt 0:14:11]} 19. Bxb5 {[%emt 0:11:40]} Nc5 {[%emt 0:03:18]} 20. Bxc5 {[%emt 0:01:25]} dxc5 {[%emt 0:00:06]} 21. Nc4 {[%emt 0:00:07]} Qc7 {[%emt 0:00:13]} 22. Qd1 {[%emt 0:02:35]} Qa7 {[%emt 0:01:36]} 23. Nxe5 {[%emt 0:03:55]} Bf6 {[%emt 0:00:05]} 24. Nc4 {[%emt 0:05:33]} Bd4 {[%emt 0:00:06]} 25. f4 {[%emt 0:02:25]} Rd8 {[%emt 0:00:42]} 26. d6 {[%emt 0:04:45]} a3 {[%emt 0:05:50]} 27. Rb3 {[%emt 0:05:31]} Qb7 {[%emt 0:00:26]} 28. e5 {[%emt 0:05:40]} Na6 {[%emt 0:17:41]} 29. Na5 {[%emt 0:00:47]} Qb6 {[%emt 0:00:06]} 30. Nc6 {[%emt 0:02:27]} Rf8 {[%emt 0:00:54]} 31. Ne7+ {[%emt 0:01:04]} Kh8 {[%emt 0:00:01]} 32. Bd3 {[%emt 0:00:15]} 1-0

[Event "35th European Club Cup 2019"]
[Site "Ulcinj"]
[Date "2019.11.16"]
[Round "7.11"]
[White "Netzer, Jacques"]
[Black "Meszaros, Michal"]
[Result "1/2-1/2"]
[ECO "B91"]
[WhiteElo "2284"]
[BlackElo "2355"]
[Annotator "NA"]
[PlyCount "149"]
[EventDate "2019.11.10"]
[EventType "team-tourn"]
[EventCountry "MNE"]
[SourceTitle "playchess.com"]
[Source "ChessBase"]
[SourceQuality "1"]
[WhiteTeam "Mulhouse"]
[BlackTeam "Dunajska Streda"]
[TimeControl "40/5400+30:1800+30"]

1. e4 {[%emt 0:00:00]} c5 {[%emt 0:00:00]} 2. Nf3 {[%emt 0:00:05]} d6 {[%emt 0:00:31]} 3. d4 {[%emt 0:00:17]} cxd4 {[%emt 0:00:14]} 4. Nxd4 {[%emt 0:00:05]} Nf6 {[%emt 0:00:16]} 5. Nc3 {[%emt 0:00:06]} a6 {[%emt 0:00:20]} 6. g3 {[%emt 0:00:23]} e5 {[%emt 0:02:07]} 7. Nb3 {[%emt 0:00:37]} Be7 {[%emt 0:03:14]} 8. Bg5 {[%emt 0:00:45]} Nbd7 {[%emt 0:02:55]} 9. a4 {[%emt 0:01:49]} b6 {[%emt 0:01:09]} 10. Bc4 {[%emt 0:03:41]} Bb7 {[%emt 0:01:25]} 11. Qe2 {[%emt 0:40:03]} O-O {[%emt 0:02:27]} 12. Bxf6 {[%emt 0:02:14]} Nxf6 {[%emt 0:00:37]} 13. Rd1 {[%emt 0:01:31]} Qc7 {[%emt 0:02:44]} 14. O-O {[%emt 0:00:12]} Rfc8 {[%emt 0:04:15]} 15. Nd2 {[%emt 0:01:49]} Qc5 {[%emt 0:18:06]} 16. Bb3 {[%emt 0:05:36]} d5 {[%emt 0:29:10]} 17. exd5 {[%emt 0:13:03]} Nxd5 {[%emt 0:00:46]} 18. Nxd5 {[%emt 0:04:31]} Bxd5 {[%emt 0:00:11]} 19. Ne4 {[%emt 0:00:12]} Bc4 {[%emt 0:04:41]} 20. Qf3 {[%emt 0:05:22]} Qc6 {[%emt 0:04:23]} 21. Bxc4 {[%emt 0:00:40]} Qxc4 {[%emt 0:00:02]} 22. Rd7 {[%emt 0:00:12]} Qe6 {[%emt 0:02:24]} 23. Rfd1 {[%emt 0:00:15]} h6 {[%emt 0:05:57]} 24. Nc3 {[%emt 0:02:09]} Rab8 {[%emt 0:06:18]} 25. Nd5 {[%emt 0:06:46]} Bd8 {[%emt 0:01:59]} 26. Nb4 {[%emt 0:01:42]} Qf6 {[%emt 0:06:01]} 27. Qe4 {[%emt 0:02:21]} a5 {[%emt 0:00:45]} 28. R1d6 {[%emt 0:00:39]} axb4 {[%emt 0:00:29]} 29. Rxf6 {[%emt 0:00:10]} Bxf6 {[%emt 0:00:01]} 30. Qxb4 {[%emt 0:03:09]} Rxc2 {[%emt 0:00:24]} 31. a5 {[%emt 0:00:06]} e4 {[%emt 0:00:41]} 32. a6 {[%emt 0:00:04]} e3 {[%emt 0:00:34]} 33. fxe3 {[%emt 0:00:36]} Rxb2 {[%emt 0:00:16]} 34. Qc4 {[%emt 0:03:25]} b5 {[%emt 0:00:06]} 35. Qc5 {[%emt 0:02:00]} Re8 {[%emt 0:01:21]} 36. a7 {[%emt 0:00:39]} Bg5 {[%emt 0:00:13]} 37. Rd3 {[%emt 0:00:38]} Re2 {[%emt 0:00:47]} 38. Qc6 {[%emt 0:00:30]} Bxe3+ {[%emt 0:00:36]} 39. Rxe3 {[%emt 0:00:30]} R2xe3 {[%emt 0:00:05]} 40. a8=Q {[%emt 0:00:00]} Rxa8 {[%emt 0:00:00]} 41. Qxa8+ {[%emt 0:01:22]} Kh7 {[%emt 0:00:42]} 42. Qb7 {[%emt 0:01:22]} Kg8 {[%emt 0:02:51]} 43. Qxb5 {[%emt 0:11:58]} g5 {[%emt 0:07:59]} 44. Kf2 {[%emt 0:02:49]} Re6 {[%emt 0:00:24]} 45. Kf3 {[%emt 0:00:32]} Kg7 {[%emt 0:01:52]} 46. Kg4 {[%emt 0:00:31]} Kg8 {[%emt 0:01:54]} 47. Kh5 {[%emt 0:02:52]} Kg7 {[%emt 0:04:12]} 48. Qf5 {[%emt 0:03:04]} Rg6 {[%emt 0:00:12]} 49. Qe5+ {[%emt 0:00:16]} Kg8 {[%emt 0:00:39]} 50. Qe8+ {[%emt 0:00:30]} Kg7 {[%emt 0:00:02]} 51. Qe5+ {[%emt 0:00:04]} Kg8 {[%emt 0:00:08]} 52. Kg4 {[%emt 0:01:35]} Re6 {[%emt 0:00:20]} 53. Qb2 {[%emt 0:00:43]} Rg6 {[%emt 0:01:48]} 54. Kf5 {[%emt 0:00:36]} Re6 {[%emt 0:02:11]} 55. Qd4 {[%emt 0:00:44]} Rg6 {[%emt 0:01:28]} 56. Qd8+ {[%emt 0:00:39]} Kg7 {[%emt 0:00:13]} 57. Qd4+ {[%emt 0:00:02]} Kg8 {[%emt 0:00:06]} 58. Qc3 {[%emt 0:04:36]} Re6 {[%emt 0:00:27]} 59. Qa1 {[%emt 0:00:06]} Rg6 {[%emt 0:00:09]} 60. Qd4 {[%emt 0:01:22]} Re6 {[%emt 0:04:04]} 61. Kg4 {[%emt 0:00:06]} Rg6 {[%emt 0:00:12]} 62. Kh5 {[%emt 0:00:03]} Re6 {[%emt 0:01:20]} 63. Qg4 {[%emt 0:00:55]} Kg7 {[%emt 0:00:40]} 64. Qf5 {[%emt 0:00:51]} Rg6 {[%emt 0:00:16]} 65. Qe5+ {[%emt 0:01:00]} Kg8 {[%emt 0:00:04]} 66. h3 {[%emt 0:02:08]} Kh7 {[%emt 0:01:07]} 67. Qf5 {[%emt 0:01:11]} Kg7 {[%emt 0:00:09]} 68. Qe5+ {[%emt 0:00:12]} Kh7 {[%emt 0:00:01]} 69. Qe4 {[%emt 0:00:34]} Kg7 {[%emt 0:00:14]} 70. Qd4+ {[%emt 0:00:03]} Kg8 {[%emt 0:00:25]} 71. Qd3 {[%emt 0:00:28]} Kg7 {[%emt 0:00:17]} 72. Qc3+ {[%emt 0:00:41]} Kg8 {[%emt 0:00:03]} 73. Qc8+ {[%emt 0:01:21]} Kg7 {[%emt 0:00:02]} 74. Qc3+ {[%emt 0:00:37]} Kg8 {[%emt 0:00:01]} 75. Qe5 {[%emt 0:00:56]} 1/2-1/2

[Event "35th European Club Cup 2019"]
[Site "Ulcinj"]
[Date "2019.11.16"]
[Round "7.11"]
[White "Buzeti, Jernej"]
[Black "Goormachtigh, Johan"]
[Result "1/2-1/2"]
[ECO "B48"]
[WhiteElo "2211"]
[BlackElo "2180"]
[Annotator "NA"]
[PlyCount "79"]
[EventDate "2019.11.10"]
[EventType "team-tourn"]
[EventCountry "MNE"]
[SourceTitle "playchess.com"]
[Source "ChessBase"]
[SourceQuality "1"]
[WhiteTeam "Maribor"]
[BlackTeam "KGSRL Gent"]
[TimeControl "40/5400+30:1800+30"]

1. e4 {[%emt 0:00:00]} c5 {[%emt 0:00:00]} 2. Nf3 {[%emt 0:00:00]} e6 {[%emt 0:00:13]} 3. d4 {[%emt 0:00:11]} cxd4 {[%emt 0:00:06]} 4. Nxd4 {[%emt 0:00:07]} Nc6 {[%emt 0:00:07]} 5. Nc3 {[%emt 0:00:07]} Qc7 {[%emt 0:00:34]} 6. Be3 {[%emt 0:00:26]} a6 {[%emt 0:00:16]} 7. Qd2 {[%emt 0:00:08]} Nf6 {[%emt 0:00:46]} 8. O-O-O {[%emt 0:00:11]} Bb4 {[%emt 0:01:31]} 9. f3 {[%emt 0:01:00]} O-O {[%emt 0:00:12]} 10. a3 {[%emt 0:05:44]} Be7 {[%emt 0:01:04]} 11. g4 {[%emt 0:00:30]} b5 {[%emt 0:00:34]} 12. g5 {[%emt 0:04:34]} Nh5 {[%emt 0:00:50]} 13. Nce2 {[%emt 0:12:07]} b4 {[%emt 0:06:38]} 14. Nxc6 {[%emt 0:24:55]} dxc6 {[%emt 0:00:42]} 15. Ng3 {[%emt 0:03:07]} bxa3 {[%emt 0:10:45]} 16. b3 {[%emt 0:00:07]} Rd8 {[%emt 0:39:47]} 17. Bd3 {[%emt 0:03:33]} g6 {[%emt 0:02:46]} 18. Nxh5 {[%emt 0:02:24]} gxh5 {[%emt 0:00:01]} 19. f4 {[%emt 0:08:19]} a5 {[%emt 0:00:44]} 20. e5 {[%emt 0:14:21]} a4 {[%emt 0:04:20]} 21. Qc3 {[%emt 0:11:17]} axb3 {[%emt 0:04:53]} 22. cxb3 {[%emt 0:00:14]} Ba6 {[%emt 0:13:01]} 23. Be4 Be2 {[%emt 0:06:07]} 24. Rde1 {[%emt 0:05:16]} Bb5 {[%emt 0:02:14]} 25. Kb1 {[%emt 0:01:34]} Qa5 {[%emt 0:01:27]} 26. Qxa5 {[%emt 0:01:39]} Rxa5 {[%emt 0:00:02]} 27. Bb6 {[%emt 0:00:22]} Rda8 {[%emt 0:02:52]} 28. Bxa5 {[%emt 0:00:18]} Rxa5 {[%emt 0:00:01]} 29. Ka2 {[%emt 0:00:44]} Bb4 {[%emt 0:01:09]} 30. Rd1 {[%emt 0:00:25]} Be2 {[%emt 0:00:31]} 31. Rd8+ {[%emt 0:00:52]} Kg7 {[%emt 0:00:02]} 32. Rc1 {[%emt 0:00:11]} c5 {[%emt 0:00:20]} 33. Rc2 {[%emt 0:00:54]} Bb5 {[%emt 0:00:29]} 34. h4 {[%emt 0:00:35]} Ra7 {[%emt 0:00:30]} 35. f5 exf5 {[%emt 0:00:15]} 36. Bxf5 {[%emt 0:00:29]} Re7 {[%emt 0:00:16]} 37. Rd5 {[%emt 0:00:27]} Rc7 {[%emt 0:00:41]} 38. Rd8 {[%emt 0:00:43]} Re7 {[%emt 0:01:07]} 39. Rd5 {[%emt 0:00:33]} Rc7 {[%emt 0:00:12]} 40. Rd8 {[%emt 0:00:00]} 1/2-1/2

[Event "35th European Club Cup 2019"]
[Site "Ulcinj"]
[Date "2019.11.16"]
[Round "7.12"]
[White "Kryakvin, Dmitry"]
[Black "Van Ketel, Raoul"]
[Result "1-0"]
[ECO "A05"]
[WhiteElo "2605"]
[BlackElo "2212"]
[Annotator "ChessBase"]
[PlyCount "81"]
[EventDate "2019.11.10"]
[EventType "team-tourn"]
[EventCountry "MNE"]
[SourceTitle "playchess.com"]
[Source "ChessBase"]
[SourceQuality "1"]
[WhiteTeam "Molodezka"]
[BlackTeam "LSG IntelliMagic"]
[TimeControl "40/5400+30:1800+30"]

1. Nf3 {[%emt 0:00:00]} Nf6 {[%emt 0:01:07]} 2. c4 {[%emt 0:00:00]} e6 {[%emt 0:00:26]} 3. g3 {[%emt 0:00:00]} d5 {[%emt 0:00:45]} 4. b3 {[%emt 0:00:09]} c5 {[%emt 0:02:14]} 5. Bg2 {[%emt 0:00:31]} Nc6 {[%emt 0:00:59]} 6. O-O {[%emt 0:01:12]} Be7 {[%emt 0:01:20]} 7. e3 {[%emt 0:01:53]} O-O {[%emt 0:02:38]} 8. Bb2 {[%emt 0:00:10]} b6 {[%emt 0:03:29]} 9. Nc3 {[%emt 0:02:15]} Ba6 {[%emt 0:02:10]} 10. Qe2 {[%emt 0:02:08]} Rc8 {[%emt 0:01:39]} 11. d3 {[%emt 0:06:25]} Qd7 {[%emt 0:13:15]} 12. Rad1 {[%emt 0:03:58]} Rfe8 {[%emt 0:16:54]} 13. h3 {[%emt 0:08:01]} h6 {[%emt 0:11:08]} 14. g4 {[%emt 0:04:30]} Rcd8 {[%emt 0:07:51]} 15. Nb5 {[%emt 0:06:30]} Bb7 {[%emt 0:09:05]} 16. Rfe1 {[%emt 0:13:01]} a6 {[%emt 0:03:03]} 17. Na3 {[%emt 0:00:38]} Qc7 {[%emt 0:03:34]} 18. Rc1 {[%emt 0:04:50]} Qb8 {[%emt 0:01:14]} 19. Red1 {[%emt 0:00:36]} d4 {[%emt 0:01:11]} 20. Nc2 {[%emt 0:07:25]} e5 {[%emt 0:00:30]} 21. Nd2 {[%emt 0:00:29]} Bf8 {[%emt 0:02:29]} 22. Ne4 {[%emt 0:00:37]} Nxe4 {[%emt 0:00:59]} 23. Bxe4 {[%emt 0:02:35]} Ne7 {[%emt 0:03:31]} 24. Qf3 {[%emt 0:03:11]} Bxe4 {[%emt 0:01:25]} 25. Qxe4 {[%emt 0:00:08]} Ng6 {[%emt 0:00:04]} 26. Ne1 {[%emt 0:02:01]} Qa8 {[%emt 0:02:03]} 27. Nf3 {[%emt 0:03:25]} Qxe4 {[%emt 0:01:57]} 28. dxe4 {[%emt 0:00:35]} Bd6 {[%emt 0:00:52]} 29. Kf1 {[%emt 0:03:15]} Nf8 {[%emt 0:00:46]} 30. Ke2 {[%emt 0:01:42]} Ne6 {[%emt 0:00:16]} 31. h4 {[%emt 0:01:41]} g6 {[%emt 0:00:44]} 32. Rh1 {[%emt 0:01:07]} Nc7 {[%emt 0:04:15]} 33. h5 {[%emt 0:01:13]} Bf8 {[%emt 0:00:02]} 34. g5 {[%emt 0:03:35]} Rd6 {[%emt 0:00:50]} 35. gxh6 {[%emt 0:00:50]} gxh5 {[%emt 0:01:09]} 36. Rxh5 {[%emt 0:00:40]} Rxh6 {[%emt 0:00:28]} 37. Rg1+ {[%emt 0:00:41]} Kh8 {[%emt 0:01:28]} 38. Rxe5 {[%emt 0:00:34]} Bg7 {[%emt 0:00:30]} 39. Rxe8+ {[%emt 0:00:47]} Nxe8 {[%emt 0:00:01]} 40. exd4 {[%emt 0:00:00]} Nc7 {[%emt 0:00:00]} 41. e5 {[%emt 0:02:38]} 1-0

[Event "35th European Club Cup 2019"]
[Site "Ulcinj"]
[Date "2019.11.16"]
[Round "7.12"]
[White "Takacs, Laszlo"]
[Black "Richard, Emma"]
[Result "0-1"]
[ECO "B33"]
[WhiteElo "2239"]
[BlackElo "2157"]
[Annotator "NA"]
[PlyCount "108"]
[EventDate "2019.11.10"]
[EventType "team-tourn"]
[EventCountry "MNE"]
[SourceTitle "playchess.com"]
[Source "ChessBase"]
[SourceQuality "1"]
[WhiteTeam "Dunajska Streda"]
[BlackTeam "Mulhouse"]
[TimeControl "40/5400+30:1800+30"]

1. e4 {[%emt 0:00:00]} c5 {[%emt 0:00:00]} 2. Nf3 {[%emt 0:00:00]} Nc6 {[%emt 0:00:00]} 3. d4 {[%emt 0:00:00]} cxd4 {[%emt 0:00:00]} 4. Nxd4 {[%emt 0:00:32]} e5 {[%emt 0:00:00]} 5. Nb5 {[%emt 0:00:30]} d6 {[%emt 0:00:30]} 6. N1c3 {[%emt 0:00:30]} a6 {[%emt 0:00:30]} 7. Na3 {[%emt 0:00:30]} Nf6 {[%emt 0:00:30]} 8. Bg5 {[%emt 0:00:30]} Be6 {[%emt 0:00:30]} 9. Nc4 {[%emt 0:00:30]} Rb8 {[%emt 0:00:30]} 10. Ne3 {[%emt 0:00:30]} Be7 {[%emt 0:00:30]} 11. Bxf6 {[%emt 0:00:30]} Bxf6 {[%emt 0:00:30]} 12. Ncd5 {[%emt 0:19:37]} Bg5 {[%emt 0:00:14]} 13. g3 {[%emt 0:00:30]} O-O {[%emt 0:02:02]} 14. Bg2 {[%emt 0:04:41]} b5 {[%emt 0:08:58]} 15. O-O {[%emt 0:03:28]} Bxe3 {[%emt 0:08:55]} 16. Nxe3 {[%emt 0:00:29]} Rc8 {[%emt 0:02:59]} 17. Kh1 {[%emt 0:09:06]} Na5 {[%emt 0:19:07]} 18. f4 {[%emt 0:20:50]} f6 {[%emt 0:07:00]} 19. f5 {[%emt 0:17:51]} Bf7 {[%emt 0:04:54]} 20. a4 {[%emt 0:06:23]} b4 {[%emt 0:01:56]} 21. b3 {[%emt 0:04:29]} Qb6 {[%emt 0:11:54]} 22. Qd2 Kh8 23. Nd5 {[%emt 0:04:14]} Bxd5 {[%emt 0:01:43]} 24. exd5 {[%emt 0:00:04]} Rc3 25. Rae1 {[%emt 0:02:54]} Rfc8 {[%emt 0:02:12]} 26. Be4 {[%emt 0:00:11]} Nb7 27. Qg2 {[%emt 0:00:43]} Qd4 {[%emt 0:14:11]} 28. Rd1 {[%emt 0:00:44]} Qe3 {[%emt 0:00:06]} 29. Rd3 {[%emt 0:01:11]} Rxd3 {[%emt 0:00:59]} 30. Bxd3 {[%emt 0:00:03]} Nc5 {[%emt 0:00:34]} 31. Qe2 {[%emt 0:01:00]} Qxe2 {[%emt 0:00:13]} 32. Bxe2 {[%emt 0:00:06]} a5 {[%emt 0:00:39]} 33. Bb5 {[%emt 0:02:04]} Ne4 {[%emt 0:01:27]} 34. Bc6 {[%emt 0:00:30]} Nc3 {[%emt 0:00:30]} 35. Re1 {[%emt 0:00:32]} Kg8 {[%emt 0:01:17]} 36. Kg2 {[%emt 0:00:09]} Rc7 {[%emt 0:00:56]} 37. Kf3 {[%emt 0:00:31]} Kf7 {[%emt 0:00:26]} 38. Ke3 {[%emt 0:00:35]} Ke7 {[%emt 0:00:15]} 39. Kd3 {[%emt 0:00:42]} Kd8 {[%emt 0:00:34]} 40. Kd2 {[%emt 0:00:00]} Re7 {[%emt 0:00:00]} 41. Kd3 {[%emt 0:11:11]} Kc7 {[%emt 0:01:50]} 42. g4 {[%emt 0:02:09]} Kb6 {[%emt 0:06:43]} 43. Kc4 {[%emt 0:01:03]} Rc7 {[%emt 0:00:30]} 44. h4 {[%emt 0:04:08]} h6 {[%emt 0:05:09]} 45. g5 {[%emt 0:04:34]} fxg5 {[%emt 0:00:30]} 46. hxg5 {[%emt 0:00:07]} Rf7 {[%emt 0:00:52]} 47. f6 {[%emt 0:01:37]} hxg5 {[%emt 0:00:30]} 48. fxg7 {[%emt 0:00:30]} Rxg7 {[%emt 0:00:30]} 49. Rh1 {[%emt 0:00:30]} Rf7 {[%emt 0:10:35]} 50. Rh8 {[%emt 0:00:46]} Rf4+ {[%emt 0:00:12]} 51. Kd3 {[%emt 0:00:07]} Kc5 {[%emt 0:02:24]} 52. Rg8 {[%emt 0:01:53]} e4+ {[%emt 0:02:15]} 53. Kd2 {[%emt 0:00:47]} Rf2+ {[%emt 0:01:41]} 54. Ke1 {[%emt 0:00:40]} Rxc2 {[%emt 0:01:34]} 0-1

[Event "35th European Club Cup 2019"]
[Site "Ulcinj"]
[Date "2019.11.16"]
[Round "7.12"]
[White "Vanheirzeele, Daniel"]
[Black "Bratkovic, Sham"]
[Result "1/2-1/2"]
[ECO "D02"]
[WhiteElo "2105"]
[BlackElo "2232"]
[Annotator "NA"]
[PlyCount "28"]
[EventDate "2019.11.10"]
[EventType "team-tourn"]
[EventCountry "MNE"]
[SourceTitle "playchess.com"]
[Source "ChessBase"]
[SourceQuality "1"]
[WhiteTeam "KGSRL Gent"]
[BlackTeam "Maribor"]
[TimeControl "40/5400+30:1800+30"]

1. d4 {[%emt 0:00:00]} d5 {[%emt 0:01:18]} 2. Nf3 {[%emt 0:00:00]} Nf6 {[%emt 0:01:19]} 3. g3 {[%emt 0:00:00]} c6 {[%emt 0:01:51]} 4. Bg2 {[%emt 0:00:07]} Bf5 {[%emt 0:02:37]} 5. c4 {[%emt 0:00:59]} e6 {[%emt 0:01:21]} 6. Nc3 {[%emt 0:00:26]} Nbd7 {[%emt 0:03:31]} 7. Qb3 {[%emt 0:19:28]} Qc8 {[%emt 0:05:51]} 8. Nh4 {[%emt 0:09:27]} Bg6 {[%emt 0:03:43]} 9. O-O {[%emt 0:14:31]} Bd6 {[%emt 0:05:38]} 10. Nxg6 {[%emt 0:06:37]} hxg6 {[%emt 0:00:23]} 11. Bg5 {[%emt 0:00:13]} Nh7 {[%emt 0:10:12]} 12. Bd2 {[%emt 0:01:16]} Nhf6 {[%emt 0:07:16]} 13. Bg5 {[%emt 0:02:15]} Nh7 {[%emt 0:07:49]} 14. Bd2 {[%emt 0:00:05]} Nhf6 {[%emt 0:00:07]} 1/2-1/2